fUSD/lending_fUSD_20240708
["ID","MTS","AMOUNT","RATE_DAILY","PERIOD"]
[331546223,1720477843415,-150.0,0.00035899,2]
[331546225,1720477843424,-150.0,0.00035899,2]
[331546227,1720477843434,-150.0,0.00035899,2]
[331546229,1720477843443,-1500.0,0.000359,60]
[331546231,1720477843454,-2000.0,0.000359,16]
[331546233,1720477843464,-729.13301203,0.00035904,7]
[331546235,1720477843473,-300.0,0.00035919,2]
[331546237,1720477843483,-1000.0,0.00036,120]
[331546239,1720477843492,-2200.0,0.00036,120]
[331546241,1720477843502,-619.32060234,0.00036,2]
[331546243,1720477843511,-150.0,0.00036,2]
[331546245,1720477843521,-1000.0,0.00036,120]
[331546247,1720477843532,-579.89014123,0.00036001,7]
[331546249,1720477843542,-1172.47381023,0.00036026,7]
[331546251,1720477843552,-150.0,0.00036062,7]
[331546253,1720477843562,-151.14628751,0.00036067,7]
[331546255,1720477843571,-166.66666666,0.00036071,7]
[331546257,1720477843580,-11321.5186941,0.00036178,5]
[331546258,1720477843591,-16865.6267398,0.00036178,5]
[331546259,1720477843600,-2057.31300372,0.00036182,7]
[331546260,1720477843609,-265.54042405,0.00036193,7]
[331546262,1720477843619,-733.070905,0.00036198,86]
[331546264,1720477843628,-151.0,0.00036254,7]
[331546266,1720477843637,-150.0,0.00036306,7]
[331546268,1720477843647,-166.37308243,0.00036316,7]
[331546270,1720477843657,-195.25148537,0.00036428,7]
[331546272,1720477843667,-195.25148537,0.00036448,7]
[331546274,1720477843677,-150.0,0.00036454,120]
[331546276,1720477843687,-187.75397123,0.00036485,7]
[331546278,1720477843697,-881.070905,0.00036498,113]
[331546280,1720477843706,-150.0,0.0003655,7]
[331546282,1720477843715,-165.86787242,0.00036557,7]
[331546284,1720477843725,-150.0,0.00036633,120]
[331546285,1720477843734,-300.0,0.00036651,2]
[331546286,1720477843744,-220.28,0.00036658,3]
[331546287,1720477843753,-195.25148537,0.00036669,7]
[331546288,1720477843763,-384.97260535,0.00036691,7]
[331546289,1720477843772,-1297.44020034,0.00036698,7]
[331546290,1720477843783,-600.0,0.000367,120]
[331546291,1720477843794,-275.5,0.000367,45]
[331546292,1720477843803,-2000.0,0.0003671,2]
[331546293,1720477843813,-11321.5186941,0.00036722,5]
[331546294,1720477843822,-265.4041306,0.00036732,2]
[331546295,1720477843831,-643.32568416,0.00036732,2]
[331546296,1720477843841,-16865.6267398,0.00036737,5]
[331546297,1720477843851,-11321.5186941,0.00036747,5]
[331546298,1720477843861,-16865.6267398,0.00036756,5]
[331546299,1720477843870,-33731.2534796,0.00036766,5]
[331546300,1720477843880,-151.0,0.00036776,7]
[331546301,1720477843889,-151.0,0.00036776,7]
[331546302,1720477843898,-151.0,0.00036776,7]
[331546303,1720477843908,-233.47462,0.00036776,7]
[331546304,1720477843917,-151.0,0.00036776,7]
[331546305,1720477843927,-156.025608,0.00036776,7]
[331546306,1720477843936,-151.0,0.00036776,7]
[331546307,1720477843946,-151.0,0.00036776,7]
[331546308,1720477843955,-151.0,0.00036776,7]
[331546309,1720477843965,-151.0,0.00036776,7]
[331546310,1720477843974,-151.0,0.00036776,7]
[331546311,1720477843984,-151.0,0.00036776,7]
[331546312,1720477843993,-151.0,0.00036776,7]
[331546313,1720477844003,-151.0,0.00036776,7]
[331546314,1720477844012,-151.0,0.00036776,7]
[331546315,1720477844021,-151.0,0.00036776,7]
[331546316,1720477844032,-151.0,0.00036776,7]
[331546317,1720477844042,-151.17,0.00036782,2]
[331546318,1720477844051,-150.0,0.00036793,7]
[331546319,1720477844061,-881.070905,0.00036798,98]
[331546320,1720477844071,-246.0359134,0.00036812,7]
[331546321,1720477844081,-16865.6267398,0.00036822,5]
[331546322,1720477844090,-151.0,0.00036832,7]
[331546323,1720477844099,-151.0,0.00036832,7]
[331546324,1720477844109,-151.0,0.00036832,7]
[331546325,1720477844118,-273.627046,0.00036832,7]
[331546326,1720477844127,-151.0,0.00036832,7]
[331546327,1720477844138,-151.0,0.00036832,7]
[331546328,1720477844148,-151.0,0.00036832,7]
[331546329,1720477844161,-151.0,0.00036832,7]
[331546330,1720477844171,-151.0,0.00036832,7]
[331546331,1720477844180,-178.121193,0.00036832,7]
[331546332,1720477844190,-151.0,0.00036832,7]
[331546333,1720477844202,-151.0,0.00036832,7]
[331546334,1720477844211,-190.80378,0.00036832,7]
[331546335,1720477844223,-151.0,0.00036832,7]
[331546336,1720477844235,-151.0,0.00036832,7]
[331546337,1720477844245,-151.0,0.00036832,7]
[331546338,1720477844254,-151.0,0.00036832,7]
[331546339,1720477844263,-151.0,0.00036832,7]
[331546340,1720477844273,-151.0,0.00036832,7]
[331546341,1720477844284,-151.0,0.00036832,7]
[331546342,1720477844295,-151.0,0.00036832,7]
[331546343,1720477844304,-151.0,0.00036832,7]
[331546344,1720477844314,-151.0,0.00036832,7]
[331546345,1720477844324,-151.0,0.00036832,7]
[331546346,1720477844334,-151.0,0.00036832,7]
[331546347,1720477844343,-158.109485,0.00036832,7]
[331546348,1720477844353,-158.109485,0.00036832,7]
[331546349,1720477844363,-158.109485,0.00036832,7]
[331546350,1720477844372,-151.0,0.00036832,7]
[331546351,1720477844381,-151.0,0.00036832,7]
[331546352,1720477844391,-265.095959,0.00036832,7]
[331546353,1720477844401,-158.109485,0.00036832,7]
[331546354,1720477844410,-158.109485,0.00036832,7]
[331546355,1720477844419,-158.109485,0.00036832,7]
[331546356,1720477844428,-151.0,0.00036832,7]
[331546357,1720477844438,-151.0,0.00036832,7]
[331546358,1720477844447,-151.0,0.00036832,7]
[331546359,1720477844457,-151.0,0.00036832,7]
[331546360,1720477844466,-151.0,0.00036832,7]
[331546361,1720477844475,-151.0,0.00036832,7]
[331546362,1720477844484,-151.0,0.00036832,7]
[331546363,1720477844494,-151.0,0.00036832,7]
[331546364,1720477844503,-151.0,0.00036832,7]
[331546365,1720477844512,-151.0,0.00036832,7]
[331546366,1720477844521,-151.0,0.00036832,7]
[331546367,1720477844532,-151.0,0.00036832,7]
[331546368,1720477844541,-151.0,0.00036832,7]
[331546369,1720477844550,-151.0,0.00036832,7]
[331546370,1720477844559,-151.0,0.00036832,7]
[331546371,1720477844569,-151.0,0.00036832,7]
[331546372,1720477844578,-151.0,0.00036832,7]
[331546373,1720477844587,-401.238537,0.00036832,7]
[331546374,1720477844596,-151.0,0.00036832,7]
[331546375,1720477844606,-151.0,0.00036832,7]
[331546376,1720477844615,-235.008372,0.00036832,7]
[331546377,1720477844624,-151.0,0.00036832,7]
[331546378,1720477844633,-179.49623,0.00036832,7]
[331546379,1720477844643,-151.0,0.00036832,7]
[331546380,1720477844652,-151.0,0.00036832,7]
[331546381,1720477844661,-151.0,0.00036832,7]
[331546382,1720477844670,-151.0,0.00036832,7]
[331546383,1720477844679,-151.0,0.00036832,7]
[331546384,1720477844687,-151.0,0.00036832,7]
[331546385,1720477844696,-151.0,0.00036832,7]
[331546386,1720477844705,-151.0,0.00036832,7]
[331546387,1720477844714,-151.0,0.00036832,7]
[331546388,1720477844723,-246.415583,0.00036832,7]
[331546389,1720477844732,-151.0,0.00036832,7]
[331546390,1720477844741,-151.0,0.00036832,7]
[331546391,1720477844750,-151.0,0.00036832,7]
[331546392,1720477844759,-151.0,0.00036832,7]
[331546393,1720477844769,-151.0,0.00036832,7]
[331546394,1720477844779,-151.0,0.00036832,7]
[331546395,1720477844788,-151.0,0.00036832,7]
[331546396,1720477844797,-151.0,0.00036832,7]
[331546397,1720477844806,-151.0,0.00036832,7]
[331546398,1720477844814,-151.0,0.00036832,7]
[331546399,1720477844823,-208.818433,0.00036832,7]
[331546400,1720477844833,-208.818433,0.00036832,7]
[331546401,1720477844842,-208.818433,0.00036832,7]
[331546402,1720477844851,-151.0,0.00036832,7]
[331546403,1720477844860,-208.818433,0.00036832,7]
[331546404,1720477844869,-151.0,0.00036832,7]
[331546405,1720477844879,-208.818433,0.00036832,7]
[331546407,1720477844889,-151.0,0.00036832,7]
[331546408,1720477844899,-208.818433,0.00036832,7]
[331546409,1720477844908,-151.0,0.00036832,7]
[331546410,1720477844917,-232.084032,0.00036832,7]
[331546411,1720477844927,-151.0,0.00036832,7]
[331546412,1720477844936,-151.0,0.00036832,7]
[331546413,1720477844945,-151.0,0.00036832,7]
[331546414,1720477844955,-151.0,0.00036832,7]
[331546415,1720477844964,-154.591816,0.00036832,7]
[331546416,1720477844974,-151.0,0.00036832,7]
[331546417,1720477844983,-151.0,0.00036832,7]
[331546418,1720477844993,-151.0,0.00036832,7]
[331546419,1720477845003,-151.0,0.00036832,7]
[331546420,1720477845012,-151.0,0.00036832,7]
[331546421,1720477845022,-151.0,0.00036832,7]
[331546422,1720477845033,-1961.857621,0.00036832,7]
[331546423,1720477845043,-1961.857621,0.00036832,7]
[331546424,1720477845053,-1961.857621,0.00036832,7]
[331546425,1720477845063,-1961.857621,0.00036832,7]
[331546426,1720477845072,-1961.857621,0.00036832,7]
[331546427,1720477845082,-1961.857621,0.00036832,7]
[331546428,1720477845092,-151.0,0.00036832,7]
[331546429,1720477845102,-151.0,0.00036832,7]
[331546430,1720477845112,-151.0,0.00036832,7]
[331546431,1720477845121,-151.0,0.00036832,7]
[331546432,1720477845131,-151.0,0.00036832,7]
[331546433,1720477845141,-151.0,0.00036832,7]
[331546434,1720477845155,-334.273277,0.00036832,7]
[331546435,1720477845167,-151.0,0.00036832,7]
[331546436,1720477845176,-334.273277,0.00036832,7]
[331546437,1720477845186,-151.0,0.00036832,7]
[331546438,1720477845198,-334.273277,0.00036832,7]
[331546439,1720477845208,-276.941213,0.00036832,7]
[331546440,1720477845217,-334.273277,0.00036832,7]
[331546441,1720477845229,-334.273277,0.00036832,7]
[331546442,1720477845238,-334.273277,0.00036832,7]
[331546443,1720477845248,-193.705702,0.00036832,7]
[331546444,1720477845258,-151.0,0.00036832,7]
[331546445,1720477845268,-151.0,0.00036832,7]
[331546446,1720477845279,-151.0,0.00036832,7]
[331546447,1720477845288,-151.0,0.00036832,7]
[331546448,1720477845297,-151.0,0.00036832,7]
[331546449,1720477845306,-151.0,0.00036832,7]
[331546450,1720477845315,-151.0,0.00036832,7]
[331546451,1720477845325,-151.0,0.00036832,7]
[331546452,1720477845335,-151.0,0.00036832,7]
[331546453,1720477845344,-151.0,0.00036832,7]
[331546454,1720477845353,-151.0,0.00036832,7]
[331546455,1720477845364,-151.0,0.00036832,7]
[331546456,1720477845373,-151.0,0.00036832,7]
[331546457,1720477845383,-235.496431,0.00036832,7]
[331546458,1720477845392,-235.496431,0.00036832,7]
[331546459,1720477845401,-235.496431,0.00036832,7]
[331546460,1720477845411,-235.496431,0.00036832,7]
[331546461,1720477845420,-151.0,0.00036832,7]
[331546462,1720477845429,-151.0,0.00036832,7]
[331546463,1720477845439,-166.076567,0.00036832,7]
[331546464,1720477845451,-166.076567,0.00036832,7]
[331546465,1720477845461,-166.076567,0.00036832,7]
[331546466,1720477845470,-166.076567,0.00036832,7]
[331546467,1720477845480,-151.0,0.00036832,7]
[331546468,1720477845489,-151.0,0.00036832,7]
[331546469,1720477845499,-352.204486,0.00036832,7]
[331546470,1720477845509,-352.204486,0.00036832,7]
[331546471,1720477845518,-352.204486,0.00036832,7]
[331546472,1720477845529,-249.52182529,0.00036832,2]
[331546473,1720477845538,-1552.78607893,0.00036832,2]
[331546474,1720477845547,-177849.41279237,0.00036832,30]
[331546475,1720477845556,-191.0,0.00036832,30]
[331546476,1720477845566,-1000.0,0.00036832,2]
[331546477,1720477845575,-1000.0,0.00036832,3]
[331546478,1720477845584,-1000.0,0.00036832,5]
[331546479,1720477845593,-1051.2064817,0.00036832,4]
[331546480,1720477845603,-1261.06490823,0.00036832,120]
[331546481,1720477845612,-150.0,0.00036832,2]
[331546482,1720477845621,-168.6,0.00036832,2]
[331546483,1720477845630,-1202.3833766,0.00036832,2]
[331546484,1720477845640,-880.02326834,0.00036832,120]
[331546485,1720477845650,-1773.65586226,0.00036832,120]
[331546486,1720477845659,-4464.359999,0.00036832,2]
[331546487,1720477845669,-884.17367473,0.00036832,120]
[331546488,1720477845678,-902.92697823,0.00036832,120]
[331546489,1720477845688,-5000.0,0.00036832,120]
[331546490,1720477845698,-5000.0,0.00036832,30]
[331546491,1720477845707,-1999.0,0.00036832,30]
[331546492,1720477845716,-819.0,0.00036832,120]
[331546493,1720477845725,-1164.81604001,0.00036832,60]
[331546494,1720477845735,-1000.0,0.00036832,30]
[331546495,1720477845745,-1000.0,0.00036832,120]
[331546496,1720477845754,-1000.0,0.00036832,30]
[331546497,1720477845764,-1000.0,0.00036832,30]
[331546498,1720477845774,-1000.0,0.00036832,60]
[331546499,1720477845784,-1000.0,0.00036832,60]
[331546500,1720477845794,-1000.0,0.00036832,30]
[331546501,1720477845803,-1000.0,0.00036832,60]
[331546502,1720477845812,-1000.0,0.00036832,120]
[331546503,1720477845822,-1000.0,0.00036832,60]
[331546504,1720477845831,-1000.0,0.00036832,30]
[331546505,1720477845841,-1000.0,0.00036832,60]
[331546506,1720477845851,-1010.95517421,0.00036832,30]
[331546507,1720477845860,-1000.0,0.00036832,60]
[331546508,1720477845869,-1000.0,0.00036832,60]
[331546509,1720477845879,-1000.0,0.00036832,120]
[331546510,1720477845888,-1000.0,0.00036832,30]
[331546511,1720477845897,-1000.0,0.00036832,60]
[331546512,1720477845907,-1000.0,0.00036832,30]
[331546513,1720477845916,-1000.0,0.00036832,120]
[331546514,1720477845926,-1000.0,0.00036832,60]
[331546515,1720477845935,-1000.0,0.00036832,30]
[331546516,1720477845944,-1000.0,0.00036832,30]
[331546517,1720477845954,-1000.0,0.00036832,30]
[331546518,1720477845963,-1000.0,0.00036832,60]
[331546519,1720477845973,-1000.0,0.00036832,60]
[331546520,1720477845982,-1000.0,0.00036832,30]
[331546521,1720477845992,-1000.0,0.00036832,60]
[331546522,1720477846001,-1000.0,0.00036832,30]
[331546523,1720477846010,-1000.0,0.00036832,60]
[331546524,1720477846020,-1000.0,0.00036832,60]
[331546525,1720477846031,-1000.0,0.00036832,120]
[331546526,1720477846040,-1000.0,0.00036832,30]
[331546527,1720477846050,-1000.0,0.00036832,60]
[331546528,1720477846060,-1079.81309657,0.00036832,90]
[331546529,1720477846069,-1999.999989,0.00036832,120]
[331546530,1720477846078,-1000.0,0.00036832,30]
[331546531,1720477846088,-528.32567448,0.00036832,60]
[331546532,1720477846098,-834.71231505,0.00036832,30]
[331546533,1720477846107,-1000.0,0.00036832,30]
[331546534,1720477846115,-2379.30006126,0.00036832,120]
[331546535,1720477846124,-1000.0,0.00036832,30]
[331546536,1720477846134,-971.41597447,0.00036832,120]
[331546537,1720477846142,-701.53206147,0.00036832,30]
[331546538,1720477846154,-1000.0,0.00036832,120]
[331546539,1720477846164,-831.07104173,0.00036832,60]
[331546540,1720477846174,-1060.0163795,0.00036832,120]
[331546541,1720477846183,-983.0,0.00036832,30]
[331546542,1720477846192,-817.61023897,0.00036832,30]
[331546543,1720477846202,-1000.0,0.00036832,60]
[331546544,1720477846212,-825.43048239,0.00036832,30]
[331546545,1720477846222,-394.69866733,0.00036832,120]
[331546546,1720477846232,-1000.0,0.00036832,120]
[331546547,1720477846242,-592.06323898,0.00036832,120]
[331546548,1720477846251,-1659.76315651,0.00036832,120]
[331546549,1720477846260,-889.10641943,0.00036832,30]
[331546550,1720477846269,-918.52535375,0.00036832,30]
[331546551,1720477846279,-1134.07403214,0.00036832,120]
[331546552,1720477846288,-1000.0,0.00036832,30]
[331546553,1720477846297,-945.0510873,0.00036832,120]
[331546554,1720477846306,-1000.0,0.00036832,60]
[331546555,1720477846315,-1107.38800039,0.00036832,120]
[331546556,1720477846325,-836.36741441,0.00036832,10]
[331546557,1720477846334,-1000.0,0.00036832,10]
[331546558,1720477846343,-1000.0,0.00036832,30]
[331546559,1720477846353,-446.61019066,0.00036832,120]
[331546560,1720477846363,-1000.0,0.00036832,60]
[331546561,1720477846372,-568.16066188,0.00036832,120]
[331546562,1720477846381,-821.06193978,0.00036832,120]
[331546563,1720477846391,-1000.0,0.00036832,30]
[331546564,1720477846399,-1039.46,0.00036832,60]
[331546565,1720477846408,-354.31421036,0.00036832,60]
[331546566,1720477846418,-1066.77230485,0.00036832,120]
[331546567,1720477846427,-1326.67014369,0.00036832,120]
[331546568,1720477846436,-981.82241405,0.00036832,120]
[331546569,1720477846445,-193.37008368,0.00036832,120]
[331546570,1720477846456,-576.19069472,0.00036832,120]
[331546571,1720477846465,-938.92829656,0.00036832,120]
[331546572,1720477846474,-918.5017987,0.00036832,120]
[331546573,1720477846483,-800.36718705,0.00036832,120]
[331546574,1720477846492,-156.97681257,0.00036832,120]
[331546575,1720477846501,-844.8869626,0.00036832,30]
[331546576,1720477846511,-194.7431029,0.00036832,120]
[331546577,1720477846520,-948.26720883,0.00036832,120]
[331546578,1720477846530,-1317.01341218,0.00036832,120]
[331546579,1720477846539,-686.23493933,0.00036832,120]
[331546580,1720477846549,-1123.32101722,0.00036832,30]
[331546581,1720477846558,-193.06158163,0.00036832,120]
[331546582,1720477846567,-531.23191306,0.00036832,120]
[331546583,1720477846577,-1473.88458182,0.00036832,120]
[331546584,1720477846586,-370.15651308,0.00036832,60]
[331546585,1720477846596,-540.4511346,0.00036832,120]
[331546586,1720477846606,-846.90122328,0.00036832,30]
[331546587,1720477846615,-1093.56055693,0.00036832,30]
[331546588,1720477846624,-910.28450544,0.00036832,120]
[331546589,1720477846634,-217.87199139,0.00036832,120]
[331546590,1720477846643,-212.89865055,0.00036832,120]
[331546591,1720477846653,-2190.82918336,0.00036832,120]
[331546592,1720477846662,-2560.29785213,0.00036832,120]
[331546593,1720477846671,-160.0,0.00036832,30]
[331546594,1720477846682,-1050.58547634,0.00036832,120]
[331546595,1720477846691,-228.0,0.00036832,120]
[331546596,1720477846700,-2000.0,0.00036832,30]
[331546597,1720477846709,-2000.0,0.00036832,30]
[331546598,1720477846718,-2000.0,0.00036832,30]
[331546599,1720477846727,-2000.0,0.00036832,30]
[331546600,1720477846737,-1736.84227208,0.00036832,120]
[331546601,1720477846747,-3543.77268298,0.00036832,60]
[331546602,1720477846756,-516.0,0.00036832,30]
[331546603,1720477846765,-2581.0,0.00036832,30]
[331546604,1720477846774,-1526.10638321,0.00036832,30]
[331546605,1720477846784,-1515.84690785,0.00036832,30]
[331546606,1720477846794,-7644.75117822,0.00036832,7]
[331546607,1720477846804,-1372.69349741,0.00036832,15]
[331546608,1720477846813,-49395.18038666,0.00036832,10]
[331546609,1720477846823,-1522.58680613,0.00036832,31]
[331546610,1720477846832,-1343.99899775,0.00036832,60]
[331546611,1720477846841,-1577.21344505,0.00036832,30]
[331546612,1720477846850,-2166.02130968,0.00036832,10]
[331546613,1720477846859,-1698.92115536,0.00036832,120]
[331546614,1720477846869,-27011.66296657,0.00036832,5]
[331546615,1720477846879,-18328.51179597,0.00036832,5]
[331546616,1720477846888,-30448.26931772,0.00036832,7]
[331546617,1720477846898,-6105.22925363,0.00036832,7]
[331546618,1720477846907,-3261.81633399,0.00036832,120]
[331546619,1720477846917,-10000.0,0.00036832,7]
[331546620,1720477846927,-3608.85363937,0.00036832,120]
[331546621,1720477846937,-158593.9697845,0.00036832,7]
[331546622,1720477846946,-1450.93623948,0.00036832,120]
[331546623,1720477846958,-5639.50514496,0.00036832,120]
[331546624,1720477846969,-168795.25364409,0.00036832,7]
[331546625,1720477846979,-1518.32947278,0.00036832,120]
[331546626,1720477846988,-1497.10559757,0.00036832,30]
[331546627,1720477846998,-205235.45687974,0.00036832,7]
[331546628,1720477847008,-1526.33528691,0.00036832,120]
[331546629,1720477847017,-1396.31469812,0.00036832,30]
[331546630,1720477847028,-2188.1564637,0.00036832,20]
[331546631,1720477847038,-191.0,0.00036832,30]
[331546632,1720477847048,-2612.0,0.00036832,34]
[331546633,1720477847059,-1874.1,0.00036832,30]
[331546634,1720477847070,-215.76640066,0.00036832,120]
[331546635,1720477847080,-894.18556835,0.00036832,120]
[331546636,1720477847090,-1000.0,0.00036832,30]
[331546637,1720477847100,-1000.0,0.00036832,30]
[331546638,1720477847110,-1000.0,0.00036832,30]
[331546639,1720477847120,-1000.0,0.00036832,30]
[331546640,1720477847130,-1000.0,0.00036832,30]
[331546641,1720477847140,-1000.0,0.00036832,30]
[331546642,1720477847154,-1000.0,0.00036832,30]
[331546643,1720477847168,-1000.0,0.00036832,30]
[331546644,1720477847178,-1000.0,0.00036832,30]
[331546645,1720477847188,-1000.0,0.00036832,30]
[331546646,1720477847199,-1000.0,0.00036832,30]
[331546647,1720477847210,-1000.0,0.00036832,30]
[331546648,1720477847220,-1000.0,0.00036832,30]
[331546649,1720477847234,-1000.0,0.00036832,30]
[331546650,1720477847243,-1000.0,0.00036832,30]
[331546651,1720477847253,-1000.0,0.00036832,30]
[331546652,1720477847263,-1000.0,0.00036832,30]
[331546653,1720477847272,-1000.0,0.00036832,30]
[331546654,1720477847281,-1000.0,0.00036832,30]
[331546655,1720477847291,-1000.0,0.00036832,30]
[331546656,1720477847299,-1000.0,0.00036832,30]
[331546657,1720477847308,-1000.0,0.00036832,30]
[331546658,1720477847318,-1000.0,0.00036832,30]
[331546659,1720477847328,-1000.0,0.00036832,30]
[331546660,1720477847337,-1553.440294,0.00036832,30]
[331546661,1720477847348,-729.13301203,0.0003686,7]
[331546662,1720477847357,-1286.10937051,0.00036866,7]
[331546663,1720477847506,-16865.6267398,0.0003689,5]
[331546664,1720477847516,-150.0,0.00036893,2]
[331546665,1720477847526,-2000.0,0.000369,18]
[331546666,1720477847538,-2057.31300372,0.0003692,7]
[331546667,1720477847547,-210.3518717,0.00036957,7]
[331546668,1720477847558,-166.66666666,0.00036968,7]
[331546669,1720477847568,-181.46599733,0.00036971,7]
[331546670,1720477847578,-187.75397123,0.00036972,7]
[331546671,1720477847588,-384.97260535,0.00036979,7]
[331546672,1720477847598,-195.25148537,0.00036999,7]
[331546673,1720477847607,-1000.0,0.00037,2]
[331546674,1720477847617,-343.3149113,0.00037,120]
[331546675,1720477847627,-1000.0,0.00037,10]
[331546676,1720477847636,-1000.0,0.00037,10]
[331546677,1720477847645,-177.64,0.00037,2]
[331546678,1720477847655,-579.89014123,0.00037004,7]
[331546679,1720477847665,-265.54042405,0.00037022,7]
[331546680,1720477847674,-169.35308735,0.00037029,7]
[331546681,1720477847683,-150.0,0.00037037,7]
[331546682,1720477847693,-166.66666667,0.00037037,7]
[331546683,1720477847702,-166.40976876,0.00037085,7]
[331546684,1720477847712,-207.94758563,0.00037123,7]
[331546685,1720477847721,-207.94758563,0.00037175,7]
[331546686,1720477847731,-249.45876396,0.00037185,10]
[331546687,1720477847740,-207.94758563,0.00037189,7]
[331546688,1720477847749,-733.070905,0.00037198,87]
[331546689,1720477847759,-1286.10937051,0.00037232,7]
[331546690,1720477847768,-493.60107678,0.00037245,7]
[331546691,1720477847778,-729.13301203,0.00037274,7]
[331546692,1720477847787,-150.0,0.00037281,7]
[331546693,1720477847796,-2500.0,0.000373,2]
[331546694,1720477847806,-1172.47381023,0.00037307,7]
[331546695,1720477847815,-493.60107678,0.00037344,7]
[331546696,1720477847824,-384.97260535,0.00037379,7]
[331546697,1720477847834,-419.31,0.00037424,2]
[331546698,1720477847843,-838.62,0.00037424,2]
[331546699,1720477847852,-419.31,0.00037425,2]
[331546700,1720477847862,-419.31,0.00037425,2]
[331546701,1720477847871,-419.31,0.00037425,2]
[331546702,1720477847881,-854.69,0.00037425,2]
[331546703,1720477847891,-419.31,0.00037425,2]
[331546704,1720477847899,-854.69,0.00037425,2]
[331546705,1720477847908,-854.69,0.00037425,2]
[331546706,1720477847918,-419.31,0.00037425,2]
[331546707,1720477847927,-854.69,0.00037425,2]
[331546708,1720477847937,-854.69,0.00037425,2]
[331546709,1720477847946,-1564.63,0.00037425,2]
[331546710,1720477847956,-838.29,0.00037425,2]
[331546711,1720477847966,-150.570609,0.00037456,7]
[331546712,1720477847975,-881.070905,0.00037498,113]
[331546713,1720477847984,-246.0359134,0.00037509,7]
[331546714,1720477847994,-150.0,0.00037524,7]
[331546715,1720477848003,-493.60107678,0.00037537,7]
[331546716,1720477848013,-600.0,0.00037691,2]
[331546717,1720477848023,-275.5,0.000377,45]
[331546718,1720477848036,-187.75397123,0.00037701,7]
[331546719,1720477848045,-493.60107678,0.00037718,7]
[331546720,1720477848054,-166.5495961,0.00037724,7]
[331546721,1720477848067,-158.50759721,0.00037743,7]
[331546722,1720477848076,-150.0,0.00037768,7]
[331546723,1720477848086,-16865.6267398,0.0003778,6]
[331546724,1720477848095,-881.070905,0.00037798,99]
[331546725,1720477848105,-2044.56894933,0.000378,70]
[331546726,1720477848114,-195.25148537,0.00037801,7]
[331546727,1720477848123,-265.54042405,0.00037868,7]
[331546728,1720477848133,-150.0,0.00037893,2]
[331546729,1720477848143,-1056.899999,0.000379,21]
[331546730,1720477848152,-150.570609,0.00037924,7]
[331546731,1720477848165,-246.0359134,0.00037987,7]
[331546732,1720477848175,-16865.6267398,0.0003799,6]
[331546733,1720477848184,-170.82887763,0.00037999,120]
[331546734,1720477848195,-1000.0,0.00038,120]
[331546735,1720477848204,-1215.24183642,0.00038,120]
[331546736,1720477848213,-2200.28681593,0.00038,120]
[331546737,1720477848223,-1213.05044589,0.00038,90]
[331546738,1720477848233,-378.1135793,0.00038,30]
[331546739,1720477848243,-1736.84227208,0.00038,120]
[331546740,1720477848252,-2496.98151995,0.00038,30]
[331546741,1720477848262,-2107.94608466,0.00038,120]
[331546742,1720477848271,-1000.0,0.00038,120]
[331546743,1720477848283,-153.48,0.00038,31]
[331546744,1720477848292,-153.48,0.00038,31]
[331546745,1720477848302,-153.48,0.00038,31]
[331546746,1720477848312,-153.48,0.00038,31]
[331546747,1720477848322,-153.48,0.00038,31]
[331546748,1720477848332,-153.48,0.00038,31]
[331546749,1720477848342,-153.48,0.00038,31]
[331546750,1720477848352,-153.48,0.00038,31]
[331546751,1720477848362,-153.48,0.00038,31]
[331546752,1720477848373,-153.48,0.00038,31]